Cogmind - Beta 15 @@@ ROGUE MODE // 2025.06.27 @ 08:27:40 Player: Dakune Result: Destroyed by BQ-RC2(R) with Subdweller Machine Gun Performance ------------- Evolutions (0) 0 Regions Visited (2) 400 Robots Destroyed (8) 40 Value Destroyed (260) 260 Prototype IDs (2) 40 Alien Tech Used (0) 0 Bonus (0) 0 TOTAL SCORE: 740 Bonus ------- None Cogmind --------- Core Integrity 0/250 Matter 300/300 Energy 100/100 System Corruption 0% Temperature Cool (0) Movement Core (100) Ox1 Location -10/Subcaves Parts ------- > --- POWER (1) -------- (None) > --- PROPULSION (2) --- (None) > --- UTILITY (2) ------ Small Storage Unit Targeting Computer > --- WEAPON (2) ------- (None) > --- INVENTORY (8) ---- Light Ion Engine Disposable Heat Sink Subdweller Machine Gun Scrap Shield Fragment (47) Peak State ------------ > --- POWER ------------ Light Ion Engine > --- PROPULSION ------- Light Treads Light Treads > --- UTILITY ---------- Small Storage Unit Targeting Computer > --- WEAPON ----------- Small Laser Particle Gun > --- INVENTORY -------- Light Ion Engine Disposable Heat Sink Riot Gun Particle Gun Flamer Scrap Shield Fragment [Rating: 9] Favorites ----------- Power Light Ion Engine Engine Light Ion Engine Propulsion Light Treads Treads Light Treads Leg Aluminum Leg Utility Small Storage Unit Storage Small Storage Unit Processor Targeting Computer Weapon Small Laser Energy Gun Small Laser Special Weapon Flamer Build | -11 -10 -10 ------- Run | Yrd Mat Sub Slots Evolved . | . . . Power . | . . . Propulsion . | . . . Utility . | . . . Weapon . | . . . Parts Attached 14 | 6 1 7 Power 3 | 1 . 2 Engine 3 | 1 . 2 Core . | . . . Reactor . | . . . Propulsion 3 | 2 . 1 Treads 2 | 2 . . Leg 1 | . . 1 Wheel . | . . . Hover . | . . . Flight . | . . . Utility 2 | 1 1 . Device . | . . . Storage 1 | 1 . . Processor 1 | . 1 . Hackware . | . . . Protection . | . . . Artifact . | . . . Weapon 6 | 2 . 4 Energy Gun 5 | 2 . 3 Energy Cannon . | . . . Ballistic Gun . | . . . Ballistic Cannon . | . . . Launcher . | . . . Special Weapon 1 | . . 1 Impact Weapon . | . . . Slashing Weapon . | . . . Piercing Weapon . | . . . Special Melee Weapon . | . . . Unidentified Prototypes . | . . . Parts Lost 11 | . . 11 Power 2 | . . 2 Propulsion 3 | . . 3 Utility . | . . . Weapon 6 | . . 6 Highest Loss Streak 8 | . . 8 To Critical Strikes . | . . . Average Backups 2 | . 1 3 Power . | . 1 . Propulsion . | . . . Utility . | . . . Weapon 1 | . . 2 Tool/Special . | . . . Unused Backups 2 | . . 2 Power . | . . . Propulsion . | . . . Utility 1 | . . 1 Weapon 1 | . . 1 Tool/Special . | . . . Average Slot Usage (%) 94 | . 98 92 Engine 14 | . 14 14 Treads 24 | . 28 22 Storage 14 | . 14 14 Processor 13 | . 12 14 Energy Gun 26 | . 28 25 Peak Build Rating 9 | 6 7 9 Average Rating 6 | 4 6 7 On Entrance 4 | . 6 7 Naked Turns . | . . . Heaviest Build 12 | 11 11 12 Greatest Support 40 | 40 40 40 Greatest Overweight (x) 3 | . . 3 Average Overweight (x) . | . . . Largest Inventory Capacity 8 | 8 8 8 Average Capacity 7 | 7 8 8 Most Carried 7 | 2 3 7 Average Carried 3 | . 1 3 Final Capacity 8 | 8 8 8 Final Carried 4 | 1 3 4 Class Distribution -------------------- 100% | Mutant Dominant Class ---------------- Mutant | -10/Materials Mutant | -10/Subcaves Resources | -11 -10 -10 ----------- Run | Yrd Mat Sub Matter Collected 295 | 88 . 207 Remotely . | . . . Salvage Created 264 | . 32 232 Parts 16 | . 2 14 Haulers Intercepted . | . . . Recyclers Shooed 1 | . 1 . Parts Field Recycled . | . . . Retrieved Matter . | . . . Parts Self-Destructed 3 | . . 3 Prevented . | . . . Kills | -11 -10 -10 ------- Run | Yrd Mat Sub Combat Hostiles Destroyed 8 | . 2 6 Guns 8 | . 2 6 Classes Destroyed 2 | . 1 1 Swarmer 2 | . 2 . Subdweller 6 | . . 6 Best Kill Streak 2 | . 2 1 Combat Bots Only 2 | . 2 1 Max Kills in Single Turn 1 | . 1 1 Gunslinging . | . . . Exploded . | . . . Melee . | . . . Uniques/NPCs Destroyed . | . . . Combat | -11 -10 -10 -------- Run | Yrd Mat Sub Hostile Shots Fired 90 | . 16 74 Missed 31 | . 6 25 Hits 59 | . 10 49 Projectile 59 | . 10 49 AOE 1 | . . 1 Critical Strikes 2 | . . 2 Damage Taken 1166 | . 82 1084 Core 265 | . 8 257 Absorbed by Shields . | . . . Core Remaining (%) 100 | 100 . . Volleys Fired 55 | . 7 48 Largest 2 | . 2 2 Hottest 140 | . 90 140 Shots Fired 90 | . 14 76 Gun 89 | . 14 75 Cannon . | . . . Launcher . | . . . Special 1 | . . 1 Kinetic . | . . . Thermal 89 | . 14 75 Explosive . | . . . Electromagnetic 1 | . . 1 Robot Hit Streak 28 | . 3 28 Robot Miss Streak 4 | . 4 3 Penetration Max . | . . . Secondary Targets 3 | . 1 2 Max Gunslinging Chain 1 | . 1 1 Shots Hit Robots 76 | . 7 69 Core Hits 18 | . 3 15 Critical Kills . | . . . Critical Parts Destroyed . | . . . Critical Strikes 1 | . 1 . Burn 1 | . 1 . Melee Attacks . | . . . Impact . | . . . Slashing . | . . . Piercing . | . . . Sneak Attacks . | . . . Combat Hostiles . | . . . Follow-up Attacks . | . . . Damage Inflicted 1006 | . 104 902 Guns 995 | . 104 891 Cannons . | . . . Explosions . | . . . Melee . | . . . Ramming . | . . . Kinetic . | . . . Thermal 985 | . 104 881 Explosive . | . . . Electromagnetic 21 | . . 21 Impact . | . . . Slashing . | . . . Piercing . | . . . Highest Corruption . | . . . Average Corruption . | . . . Corruption Purged . | . . . Corruption Blocked . | . . . Overload Shots . | . . . Overflow Damage . | . . . Projectiles . | . . . Explosions . | . . . Melee . | . . . Knockbacks . | . . . Impact . | . . . Kinetic . | . . . Secondary . | . . . Self-Inflicted Damage . | . . . Shots . | . . . Rammed . | . . . Targets Rammed . | . . . Kicked . | . . . Crushed . | . . . Highest Temperature 172 | . 172 1 Average Temperature 70 | . 78 1 Received Heat Transfer 168 | . . 168 Siege Activations . | . . . Martial Activations . | . . . Shielding Activations . | . . . Robots Disrupted . | . . . Combat Hostiles . | . . . Robots Corrupted . | . . . Combat Hostiles . | . . . Parts Fried . | . . . Impact Corruptions . | . . . Robots Melted . | . . . Combat Hostiles . | . . . Parts Melted 2 | . 1 1 Heat Transferred 2593 | . 359 2234 Parts Sabotaged . | . . . Parts Stolen . | . . . Parts Stripped . | . . . Power Chain Reactions . | . . . Alert | -11 -10 -10 ------- Run | Yrd Mat Sub Maximum Alert Level . | . . . Low Security (%) 100 | 100 100 . Level 1 . | . . . Level 2 . | . . . Level 3 . | . . . Level 4 . | . . . Level 5 . | . . . High Security . | . . . Max Security . | . . . Peak Influence 50 | . 50 . Initial . | . . . Average 6 | . 7 . Influence Increases 55 | . 55 . Destroy 0b10 Robot/C 40 | . 40 . Destroy Leader 10 | . 10 . Successful Hack 5 | . 5 . Influence Decreases 55 | . 55 . Time Decay 55 | . 55 . Squads Dispatched . | . . . Investigation . | . . . Extermination . | . . . Reinforcement . | . . . Assault . | . . . Garrison . | . . . Intercept . | . . . Searches Triggered . | . . . Construction Impeded . | . . . Haulers Reinforced . | . . . Active Scanning Responses . | . . . Cargo Convoy Interrupts . | . . . Stealth | -11 -10 -10 --------- Run | Yrd Mat Sub Distress Signals 1 | . 1 . Communications Jammed . | . . . Distress Signals . | . . . Times Spotted 16 | . 6 10 Peak Tracking Total 5 | . 5 3 Tactical Retreats . | . . . Traps | -11 -10 -10 ------- Run | Yrd Mat Sub Traps Triggered . | . . . Indirectly . | . . . Trap Hack Attempts . | . . . Triggered . | . . . Disarmed . | . . . Reprogrammed . | . . . Reused . | . . . Traps Extracted . | . . . Installed . | . . . Triggered . | . . . Machines | -11 -10 -10 ---------- Run | Yrd Mat Sub Machines Disabled . | . . . Max in Single Turn . | . . . Machines Repaired . | . . . Machines Dismantled . | . . . Machines Sabotaged . | . . . Overloaded Fab Kills . | . . . Hacking | -11 -10 -10 --------- Run | Yrd Mat Sub Machines Accessed 2 | . 2 . Terminals 2 | . 2 . Fabricators . | . . . Repair Stations . | . . . Recycling Units . | . . . Scanalyzers . | . . . Garrison Access . | . . . Total Hacks 3 | . 3 . Successful 2 | . 2 . Failed 1 | . 1 . Catastrophic . | . . . Database Lockouts . | . . . Manual . | . . . Terminals 3 | . 3 . Fabricators . | . . . Repair Stations . | . . . Recycling Units . | . . . Scanalyzers . | . . . Garrison Access . | . . . Terminal Hacks 2 | . 2 . Prototype ID Bank 1 | . 1 . Hauler Manifests 1 | . 1 . Fabricator Hacks . | . . . Repair Station Hacks . | . . . Recycling Unit Hacks . | . . . Scanalyzer . | . . . Garrison Access Hacks . | . . . Unauthorized Hacks . | . . . Terminals . | . . . Fabricators . | . . . Repair Stations . | . . . Recycling Units . | . . . Scanalyzers . | . . . Garrison Access . | . . . Data Cores Recovered . | . . . Used . | . . . Hacking Detections 1 | . 1 . Full Trace Events . | . . . Feedback Events . | . . . Feedback Blocked . | . . . Robot Schematics Acquired . | . . . Robots Built . | . . . Authchips . | . . . Time . | . . . Total Robot Build Rating . | . . . Part Schematics Acquired . | . . . Parts Built . | . . . Authchips . | . . . Time . | . . . Total Part Build Rating . | . . . Parts Repaired . | . . . Time . | . . . Parts Recycled . | . . . Recycled Matter . | . . . Retrieved Matter . | . . . Retrieved Components . | . . . Parts Scanalyzed . | . . . Part Schematics Acquired . | . . . Parts Damaged . | . . . Bothacking | -11 -10 -10 ------------ Run | Yrd Mat Sub Used RIF Installer . | . . . Robots Hacked . | . . . Non-combat . | . . . Combat . | . . . Robot Hacks Applied . | . . . Relay Couplers Released . | . . . Fabnet Peak Effective % . | . . . Robots Rewired . | . . . Allies Hacked . | . . . Hacks Repelled . | . . . Allies | -11 -10 -10 -------- Run | Yrd Mat Sub Total Allies . | . . . Largest Group . | . . . Highest-Rated Group . | . . . Highest-Rated Ally . | . . . Total Orders . | . . . Ally Attacks . | . . . Total Damage . | . . . Kills . | . . . Allies Corrupted . | . . . Allies Melted . | . . . Intel | -11 -10 -10 ------- Run | Yrd Mat Sub Active Infowar (turns) . | . . . Robot Analysis Total . | . . . Derelict Logs Recovered . | . . . Drone Launches . | . . . Drone Recoveries . | . . . Exploration | -11 -10 -10 ------------- Run | Yrd Mat Sub Turns Passed 971 | 58 291 622 Spaces Moved 470 | 34 146 290 Core 26 | 5 . 21 Treads 435 | 29 146 260 Legs 9 | . . 9 Wheels . | . . . Hover . | . . . Flight . | . . . Fastest Speed 50 | 50 160 100 Average Speed 160 | 143 160 162 Slowest Speed 200 | 160 160 200 Overloaded Moves . | . . . Propulsion Burnouts . | . . . Robots Hopped . | . . . Potential Cave-ins . | . . . Cave-ins Triggered . | . . . Exploration Rate (%) 24 | 4 37 31 Regions Visited 2 Branch Regions 1 Pre-discovered Areas . | . . . Known Exits Taken . | . . . Unknown Exits Taken 2 | 1 1 . Scrap Searched 4 | . . 4 Spaces Dug . | . . . Terrain Destroyed . | . . . Melee . | . . . Projectile . | . . . AOE . | . . . Terrain Rammed . | . . . Walls Destroyed . | . . . Machines Disabled . | . . . Actions | -11 -10 -10 --------- Run | Yrd Mat Sub Total 594 | 41 189 364 Wait 47 | . 34 13 Move 468 | 33 145 290 Hop . | . . . Pick Up 10 | 2 2 6 Fast Attach 6 | 5 1 . Attach 7 | 1 . 6 Detach . | . . . Swap 1 | . . 1 Drop . | . . . Fire 55 | . 7 48 Melee . | . . . Ram . | . . . Kick . | . . . Crush . | . . . Escape Stasis . | . . . Rewire . | . . . Trap . | . . . Miscellaneous . | . . . Route ------- -11/Scrapyard -10/Materials (discovered 2 exits: [*Min] / [*Sub]) -10/Subcaves (discovered 2 exits: [*Mat] / [Scr]) History --------- Turn | Location | Event 2 | -11/Scrapyard | Met Revision 17 5 | -11/Scrapyard | Discovered new exit (range 15) 59 | -11/Scrapyard | Entered Materials 60 | -10/Materials | Met a group of wandering Federalists 267 | -10/Materials | Discovered new exit (range 9) 315 | -10/Materials | Discovered new exit (range 5) 317 | -10/Materials | Build established: Mutant 350 | -10/Materials | Entered Subcaves 351 | -10/Subcaves | Continued accompanying wandering Federalists (6) 632 | -10/Subcaves | Discovered new exit (range 11) 721 | -10/Subcaves | Disturbed a concealed Subdweller 894 | -10/Subcaves | Core integrity fell below 50% 926 | -10/Subcaves | Lost 8 parts (1p2n5w) 968 | -10/Subcaves | Core integrity fell below 20% 972 | -10/Subcaves | Destroyed by BQ-RC2(R) with Subdweller Machine Gun Last Messages --------------- 00852_ Lgt. Ion Engine destroyed. 00854_ Particle Gun destroyed. 00855_ Subatomizers dissect the Aluminum Leg. 00869_ BV-RQC(R) destroyed. 00873_ Riot Gun destroyed. 00877_ Subatomizers dissect the Aluminum Leg. 00877_ Sml. Laser destroyed. 00879_ Flamer destroyed. 00891_ Subatomizers dissect the Aluminum Leg. 00895_ Lgt. Treads destroyed. 00907_ Destroyed Scrap Shield. 00911_ II-GSW(R) destroyed. 00915_ Acquired Sub. Machine Gun. 00916_ Acquired 20 matter. 00938_ Acquired Aluminum Leg. 00957_ Aluminum Leg destroyed. 00961_ Particle Gun destroyed. 00970_ Mak. Power Source destroyed. 00970_ Acquired 5 matter. Map ----- +----------------------------------------------------+ | ????###??# ?????????"" ??""&????????????????????? | | ??### ##? ###?##?? ""??" ?????????????????????? | | ### #?? # # #?? ### ??????????????????????? | | # #??? ??# ""# ???????????????????????? | | ##" #????? ?? " ???????????????????????? | | [= #??????# ### "" ????????????????????????? | | !#" ###????# "" #?????????????????????????? | | ## ###### ! #?????????????????????????? | | ?## ## &%## ##?????????????????????????? | | ## # ##????????????????????????? | | ## #????????????????????????? | | #### # # #?????????????????????????? | | ##?##### ####?????????????????????????? | | #??? ### #????????????????????????????? | | ## #??# ## #???? ???????????????????????? | | ##?# ### # #???? ???????????????????????? | | ???## ## #?# %%###??? #??????????????????????? | | ????# #?# ![ #??? ##?????????????????????? | | ????# #?##%! #### ##????????????????????? | | ????### ### # #????????????????? | | ??????## # ##??????????????????????? | | ???????## ### #??????????????????????? | | ?????##?## #?## #??????????????????????? | | ?????# ### #### #?#######??????????????? | | ?????# ## ### ## ###????????????? | | ?????# ## @%! ## # #?????? | | ?????# ## ## R #??????? | | ?????## ### R #??????? | | ??????# ### #?## # # #??????? | | ??????#### ####?# ??# ##? ???????? | | ?????????# ##????# ?# ##??? #????? | | ?????????# ##????# ### ##?????? #????? | | ?????????# #????# ###?#######????????###????? | | ????????## ### #?????##?????????????????????????? | | ????##### #??###????????????????????????????????? | | ????# ## ##?????????????????????????????????? | | #???# ##????????????????????????????????? | | ##??## #????????????????????????????????? | | #???# #???????????????????????????????? | | ##### #### #???????????????????????????????? | | # # # #??# ##???????????????????????????????? | | < #???###????????????????????????????????? | | #????????????????????????????????????? | | # # # #???????????????????????????????????? | | ###### #??????????????????????????????????? | | #???# #??????????????????????????????????? | | ####???# ###??????????????????????????????????? | | ???????######????????????????????????????????????? | | ?????????????????????????????????????????????????? | | ?????????????????????????????????????????????????? | +----------------------------------------------------+ Best States ------------- Heat Dissipation 25 Energy Generation 15 Energy Capacity 170 Matter Stores 300 Matter Capacity 300 Sight Range 16 Terrain Scan Density 10 Evasion (%) 40 Targeting Accuracy 5 Recoil Reduction 2 Item Schematics ----------------- None Robot Schematics ------------------ None Fabricated ------------ Nothing Repaired ---------- Nothing Alien Tech Used ----------------- None Achievements -------------- None Challenges ------------ None Game ------ Seed AntigravActiveScanner Manual? 0 Play Time 00:11:37 Cumulative 3.3 hours Start 2025.06.27 @ 08:18:16 End 2025.06.27 @ 08:27:40 Sessions 1 Manual Loads 0 Difficulty Rogue Special Mode None Game No. 4 Rogue 4 Adventurer 0 Explorer 0 Win Type - Total 0 Types 0/0/0/0/0/0/0/0/0/0 Lore% 1 Gallery% 4 Achievement% 6 Wizard Run 0 Options --------- Layout 1 ASCII 0 Keyboard 0 Movement Mouse Keybinds 0 Fullscreen 2 Font 24/Smallcaps Map View 50x35 Zoom Use 0% Tactical HUD 1 Map Filters NONE Filters NONE Steam 1 RUN: d0dbec76-ef71-441b-b182-1263f9e9e20b